bitfinex/quotes_ETHUSD_20240604
["timestamp","ask_amount","ask_price","bid_price","bid_amount"]
[1717531273426,1.89,3798.8,3798.1,1.32126577]
[1717531273427,9.14748161,3798.7,3798.1,1.32126577]
[1717531273649,9.14748161,3798.7,3798.1,1.35390533]
[1717531273998,9.14748161,3798.7,3798.1,1.32126577]
[1717531274749,2.63263,3798.5,3798.1,1.32126577]
[1717531274953,9.14748161,3798.7,3798.1,1.32126577]
[1717531274954,9.14748161,3798.7,3798.4,1.32126577]
[1717531275251,2.63225,3799.1,3798.5,1.32126577]
[1717531275398,2.63225,3799.1,3798.5,1.35400457]
[1717531275600,7.3,3799.3,3798.9,1.32126577]
[1717531275801,7.3,3799.3,3799.0,0.62129358]
[1717531275998,7.3,3799.3,3799.1,1.32126577]
[1717531276366,7.3,3799.3,3799.1,1.35369994]
[1717531277317,7.3,3799.3,3799.2,3.95339577]
[1717531277502,7.3,3799.3,3799.2,3.98578464]
[1717531279114,2.63188,3799.6,3799.3,1.32126577]
[1717531279704,4.52199,3799.4,3799.3,1.32126577]
[1717531279904,1.89,3799.4,3798.0,2.31852765]
[1717531280104,2.63243,3798.8,3798.2,1.32126577]
[1717531281609,2.63222,3799.1,3798.3,1.32126577]
[1717531282010,2.63222,3799.1,3798.4,0.03126332]
[1717531282253,2.63222,3799.1,3798.5,1.32126577]
[1717531282627,2.63222,3799.1,3798.6,0.03117271]
[1717531282829,2.63222,3799.1,3798.7,1.32126577]
[1717531283219,2.63222,3799.1,3798.8,0.03101634]
[1717531283424,4.52234,3798.9,3798.8,1.35228211]
[1717531283673,7.52234,3798.9,3798.8,1.35228211]
[1717531283849,8.09125546,3798.9,3798.8,1.32126577]
[1717531287678,7.52234,3798.9,3798.8,1.32126577]
[1717531288575,8.09125889,3798.9,3798.8,1.32126577]
[1717531292280,9.66680693,3798.9,3798.8,1.32126577]
[1717531293048,8.09125889,3798.9,3798.8,1.32126577]
[1717531293396,9.66680693,3798.9,3798.8,1.32126577]
[1717531293887,8.0912585,3798.9,3798.8,1.32126577]
[1717531294690,7.77599093,3798.9,3798.8,1.32126577]
[1717531295001,5.63234,3798.9,3798.8,1.32126577]
[1717531295555,2.63234,3798.9,3798.8,1.32126577]
[1717531298708,2.63234,3798.9,3798.8,1.35284615]
[1717531299820,2.63234,3798.9,3798.8,1.32126577]
[1717531304152,2.63234,3798.9,3798.8,1.35275663]
[1717531308250,3.20120819,3798.9,3798.8,0.03149086]
[1717531308606,2.63249,3798.7,3798.0,0.01712765]
[1717531308904,2.63249,3798.7,3798.1,1.32126577]
[1717531309082,4.52249,3798.7,3798.1,1.35195539]
[1717531310383,2.63262,3798.5,3798.1,1.35195539]
[1717531310586,4.77636195,3798.5,3798.1,1.35195539]
[1717531310789,2.63262,3798.5,3798.1,1.32126577]
[1717531311346,2.63275,3798.3,3798.0,0.01712765]
[1717531311546,2.63275,3798.3,3798.0,1.33839342]
[1717531311547,8.44513801,3798.3,3798.0,1.33839342]
[1717531311777,2.63289,3798.1,3798.0,1.33839342]
[1717531311984,3.20186579,3798.1,3798.0,1.33839342]
[1717531312288,2.63289,3798.1,3798.0,1.33839342]
[1717531312454,2.63289,3798.1,3798.0,1.36824905]
[1717531313892,4.20767801,3798.1,3798.0,1.33839342]
[1717531314088,3.20188508,3798.1,3798.0,1.33839342]
[1717531314295,4.20713021,3798.1,3798.0,1.33839342]
[1717531314500,4.77612529,3798.1,3798.0,1.33839342]
[1717531314992,3.20188508,3798.1,3798.0,1.33839342]
[1717531315193,2.63289,3798.1,3798.0,1.33839342]
[1717531315757,4.776161,3798.1,3798.0,1.33839342]
[1717531316191,4.776161,3798.1,3798.0,0.01712765]
[1717531316386,3.20192079,3798.1,3798.0,0.01712765]
[1717531317089,6.20192079,3798.1,3798.0,0.01712765]
[1717531319174,7.77602138,3798.1,3798.0,0.01712765]
[1717531319496,11.21981079,3798.1,3798.0,0.01712765]
[1717531319710,11.76981079,3798.1,3798.0,0.01712765]
[1717531320603,16.29270079,3798.1,3798.0,0.01712765]
[1717531321385,16.29270079,3798.1,3796.2,4.909]
[1717531321386,2.63377,3796.9,3796.2,4.909]
[1717531321606,2.63377,3796.9,3796.3,1.81216577]
[1717531321814,1.89,3796.7,3796.3,1.35259365]
[1717531322106,2.6339,3796.7,3796.3,1.32126577]
[1717531322279,2.6339,3796.7,3796.4,0.03128253]
[1717531322475,2.6339,3796.7,3796.5,1.32126577]
[1717531323369,1.89,3797.1,3796.5,1.32126577]
[1717531323370,2.63363,3797.1,3796.5,1.32126577]
[1717531323607,2.63378,3796.9,3796.5,1.32126577]
[1717531323768,2.63393,3796.6,3796.5,1.32126577]
[1717531324106,2.63393,3796.6,3796.5,1.35250294]
[1717531327929,2.63376,3796.9,3796.5,1.35250294]
[1717531328247,2.63354,3797.2,3796.6,2.4237]
[1717531328530,7.3,3797.3,3796.7,3.95512577]
[1717531328899,9.14748161,3797.5,3797.1,1.32126577]
[1717531329121,7.3,3797.7,3797.1,1.32126577]
[1717531329596,2.63325,3797.6,3797.1,1.32126577]
[1717531330628,2.63342,3797.4,3797.1,1.32126577]
[1717531331090,2.63342,3797.4,3797.2,0.03129011]
[1717531331292,2.63342,3797.4,3797.3,1.32126577]
[1717531332027,3.0,3797.4,3796.3,2.3089]
[1717531332239,1.89,3797.1,3796.4,1.32126577]
[1717531332424,1.89,3797.1,3796.4,1.35284691]
[1717531332602,2.63376,3796.9,3796.4,1.35284691]
[1717531333930,1.89,3797.1,3796.5,1.32126577]
[1717531334218,2.63354,3797.2,3796.5,1.32126577]
[1717531335231,9.19,3797.7,3796.9,2.43]
[1717531335545,3.0,3797.6,3797.0,1.32126577]
[1717531335716,3.0,3797.6,3797.0,1.35268831]
[1717531335906,3.0,3797.6,3797.0,4.62794614]
[1717531337747,3.0,3797.6,3797.0,3.98629831]
[1717531338531,5.63328,3797.6,3797.0,3.98629831]
[1717531341048,5.63328,3797.6,3797.0,1.35268831]
[1717531341245,0.56910617,3797.5,3797.0,1.35268831]
[1717531341545,2.63339,3797.4,3797.0,1.35268831]
[1717531342450,2.63355,3797.2,3797.0,1.35268831]
[1717531342850,2.63355,3797.2,3797.0,0.03142254]
[1717531343074,2.63355,3797.2,3796.1,5.08734]
[1717531343075,2.6338,3796.8,3796.1,5.08734]
[1717531343211,2.6338,3796.8,3796.2,1.32126577]
[1717531346340,1.57423118,3796.9,3796.3,3.95536577]
[1717531346657,1.57423118,3796.9,3796.4,0.64084658]
[1717531346880,1.57423118,3796.9,3796.5,1.32126577]
[1717531347014,2.63359,3797.1,3796.5,3.95522577]
[1717531347015,2.14341454,3797.0,3796.5,3.95522577]
[1717531347226,1.57423118,3797.2,3796.5,3.95522577]
[1717531347421,1.57423118,3797.2,3796.7,3.95512577]
[1717531347622,2.14337094,3797.3,3796.7,3.95512577]
[1717531347817,9.9332,3797.7,3796.7,3.95512577]
[1717531347818,1.57423118,3797.4,3796.7,3.95512577]
[1717531348953,1.57423118,3797.4,3796.9,3.95495577]
[1717531349149,1.57423118,3797.4,3797.0,1.32126577]
[1717531349368,2.14337094,3797.5,3797.0,1.71676135]
[1717531349931,2.14337094,3797.5,3797.0,1.32126577]
[1717531352546,2.14337094,3797.5,3797.1,0.03139214]
[1717531352753,2.14337094,3797.5,3797.2,1.32126577]
[1717531353094,2.14337094,3797.5,3797.3,0.03130146]
[1717531353405,2.14337094,3797.5,3797.4,1.32126577]
[1717531353847,9.01274094,3797.5,3796.6,2.63392]
[1717531354178,0.56913976,3797.4,3796.7,1.32126577]
[1717531354326,1.57423118,3797.3,3796.7,1.32126577]
[1717531354532,1.57423118,3797.2,3796.8,0.03152818]
[1717531354726,0.56913976,3797.2,3796.9,1.32126577]
[1717531354952,2.14337094,3797.4,3796.9,1.32126577]
[1717531355276,1.57423118,3797.4,3796.9,3.63486577]
[1717531355565,1.57423118,3797.4,3797.0,0.03143748]
[1717531355737,1.57423118,3797.4,3797.1,1.32126577]
[1717531355935,1.57423118,3797.4,3797.1,3.95482577]
[1717531356139,1.57423118,3797.4,3797.2,0.0313468]
[1717531356341,0.56913976,3797.5,3797.3,1.32126577]
[1717531356342,2.14337094,3797.5,3797.3,1.32126577]
[1717531356744,2.14337094,3797.5,3797.4,0.03131586]
[1717531356953,2.14337094,3797.5,3797.4,1.35258163]
[1717531357577,1.57423118,3797.5,3797.4,1.35258163]
[1717531357867,2.14337094,3797.7,3797.4,1.67255545]
[1717531358069,0.56913976,3797.7,3797.5,1.32126577]
[1717531358254,2.14337094,3797.8,3797.5,3.95454577]
[1717531358491,9.14748161,3798.0,3797.5,3.95454577]
[1717531358492,2.14337094,3797.9,3797.6,0.03101014]
[1717531358626,2.14337094,3797.9,3797.7,1.32126577]
[1717531359142,0.56913976,3797.9,3797.7,1.32126577]
[1717531359361,9.14748161,3798.0,3797.7,4.58120035]
[1717531359868,9.14748161,3798.0,3797.9,2.63303]
[1717531360031,1.57492524,3798.3,3797.9,3.95429577]
[1717531360236,1.57492524,3798.4,3798.1,2.63288]
[1717531360435,2.14388067,3798.5,3798.2,1.32126577]
[1717531362387,0.56895543,3798.5,3798.2,1.32126577]
[1717531362609,7.3,3798.6,3798.2,1.32126577]
[1717531362945,1.57492524,3798.8,3798.4,2.4803]
[1717531363145,1.57503313,3798.8,3798.5,1.32126577]
[1717531363361,2.14391977,3798.8,3798.5,1.32126577]
[1717531363601,1.57503313,3798.8,3798.5,1.32126577]
[1717531364201,2.14391977,3798.9,3798.5,1.32126577]
[1717531365262,0.56888664,3798.9,3798.5,1.32126577]
[1717531365846,4.57503313,3799.0,3798.5,3.95383577]
[1717531366275,3.0,3799.0,3798.5,3.95383577]
[1717531368763,3.0,3799.0,3798.6,0.02962851]
[1717531368966,3.0,3799.0,3798.7,1.32126577]
[1717531369277,3.0,3799.2,3798.7,1.32126577]
[1717531369792,5.14388856,3799.2,3798.7,1.32126577]
[1717531369971,3.0,3799.2,3798.7,1.32126577]
[1717531371558,5.63218,3799.2,3798.7,1.32126577]
[1717531373763,1.57533419,3799.4,3799.0,1.32126577]
[1717531374009,0.56884856,3799.4,3799.0,1.32126577]
[1717531374211,7.3,3799.5,3799.1,2.3707]
[1717531374372,7.3,3799.5,3799.2,3.95333577]
[1717531374571,2.63167,3799.9,3799.2,3.95333577]
[1717531374753,2.63167,3799.9,3799.3,0.02933232]
[1717531374959,2.63167,3799.9,3799.4,1.32126577]
[1717531375191,3.0,3799.8,3799.4,1.32126577]
[1717531376804,8.87533419,3800.1,3799.4,1.32126577]
[1717531377020,7.3,3800.1,3799.8,2.63167]
[1717531377319,7.3,3800.1,3799.5,3.95315577]
[1717531377814,7.3,3800.1,3799.6,0.02893689]
[1717531378332,7.3,3800.1,3799.5,3.95315577]
[1717531378785,7.3,3800.1,3799.6,0.02893689]
[1717531379171,7.3,3800.1,3799.5,3.95315577]
[1717531379389,7.3,3800.1,3799.6,0.02893689]
[1717531379700,7.3,3800.1,3799.5,3.95315577]
[1717531380072,7.3,3800.1,3799.6,0.02893689]
[1717531380368,7.3,3800.1,3799.7,2.63176]
[1717531380574,9.14748161,3800.2,3799.7,2.63176]
[1717531380770,9.14748161,3800.2,3799.8,1.32126577]
[1717531381065,2.63174,3799.8,3798.5,2.4946]
[1717531381210,2.63174,3799.8,3798.8,1.32126577]
[1717531382790,2.63174,3799.8,3798.8,3.95365577]
[1717531382999,2.63174,3799.8,3799.0,2.63223]
[1717531383207,2.63174,3799.8,3799.1,1.35001145]
[1717531385527,2.63174,3799.8,3799.2,2.63213]
[1717531385688,2.63174,3799.8,3799.3,1.32126577]
[1717531385888,2.63174,3799.8,3799.3,1.34992087]
[1717531386088,2.63174,3799.8,3799.3,1.32126577]
[1717531386410,9.6758716,3800.1,3799.4,2.63199]
[1717531386599,9.6758716,3800.1,3799.5,1.32126577]
[1717531386799,7.2073716,3800.1,3799.5,1.32126577]
[1717531387304,5.63154,3800.1,3799.5,1.32126577]
[1717531387501,7.2073716,3800.1,3799.5,1.32126577]
[1717531387800,5.63154,3800.1,3799.5,1.32126577]
[1717531388315,7.2073716,3800.1,3799.5,1.32126577]
[1717531388580,7.20756535,3800.1,3799.5,1.32126577]
[1717531388700,2.63166,3799.9,3799.5,1.32126577]
[1717531388905,0.5687372,3800.0,3799.5,1.32126577]
[1717531389100,0.5687372,3800.0,3799.6,0.02856697]
[1717531389319,2.14476255,3800.0,3799.7,1.32126577]
[1717531389495,4.77639255,3800.0,3799.7,1.32126577]
[1717531389695,3.0,3799.9,3799.7,1.32126577]
[1717531390128,2.4619,3799.8,3799.0,2.63222]
[1717531390337,1.57602535,3799.6,3799.1,1.32126577]
[1717531390498,4.20789535,3799.6,3799.1,1.32126577]
[1717531391035,0.56880682,3799.5,3799.1,1.32126577]
[1717531391346,2.632,3799.4,3799.1,1.32126577]
[1717531392244,3.20082177,3799.4,3799.1,1.32126577]
[1717531392443,4.77668379,3799.4,3799.1,1.32126577]
[1717531392643,2.632,3799.4,3799.1,1.32126577]
[1717531393845,0.56882644,3799.3,3799.1,1.32126577]
[1717531394053,4.77668846,3799.4,3799.1,1.32126577]
[1717531394255,2.63213,3799.2,3799.1,1.32126577]
[1717531394413,3.20095644,3799.2,3799.1,1.32126577]
[1717531395008,4.77681846,3799.2,3799.1,1.32126577]
[1717531396309,3.20095644,3799.2,3799.1,1.32126577]
[1717531396721,4.77694798,3799.2,3799.1,1.32126577]
[1717531397146,8.54105644,3799.2,3799.1,1.32126577]
[1717531398839,2.63232,3799.0,3798.1,2.63286]
[1717531399031,2.63242,3798.8,3798.2,1.35061904]
[1717531400849,1.57591709,3798.9,3798.3,2.63275]
[1717531401051,2.14479471,3799.0,3798.4,1.32126577]
[1717531402755,0.56887762,3799.0,3798.4,1.32126577]
[1717531402956,0.56887762,3799.0,3798.7,1.32126577]
[1717531403151,3.56887762,3799.1,3798.7,3.95372577]
[1717531403462,4.57591709,3799.2,3798.8,0.02936486]
[1717531403666,4.57591709,3799.2,3798.9,1.32126577]
[1717531404057,3.0,3799.1,3799.0,0.02927426]
[1717531404268,1.57591709,3799.2,3799.0,1.35054003]
[1717531404588,1.57591709,3799.2,3799.1,1.32126577]
[1717531404795,2.14474242,3799.2,3799.1,1.32126577]
[1717531405095,2.14474242,3799.2,3799.1,1.35049473]
[1717531405388,2.14493055,3799.2,3799.1,1.35049473]
[1717531406499,0.56882536,3799.2,3799.1,1.4855442]
[1717531406663,1.57610519,3799.3,3799.1,1.4855442]
[1717531406991,5.63184,3799.7,3799.1,4.1177142]
[1717531406992,1.57610519,3799.6,3799.1,4.1177142]
[1717531407199,0.56877109,3799.6,3799.3,3.95329577]
[1717531407348,8.87610519,3799.8,3799.4,0.41175742]
[1717531407554,7.3,3799.8,3799.5,1.32126577]
[1717531410954,7.3,3799.8,3799.6,2.3013]
[1717531411295,7.3,3799.8,3799.7,1.35005595]
[1717531411468,11.22879739,3800.1,3799.7,1.35005595]
[1717531411807,0.5686679,3800.0,3799.7,1.35005595]
[1717531411972,0.56868432,3800.0,3799.7,1.35005595]
[1717531412172,9.14748161,3800.1,3799.7,1.35005595]
[1717531412582,9.14748161,3800.1,3799.7,3.98179595]
[1717531414468,9.14748161,3800.1,3799.7,4.61010554]
[1717531415263,9.14748161,3800.1,3799.9,3.95287577]
[1717531415466,9.14748161,3800.1,3800.0,0.02865436]
[1717531415795,7.3,3800.5,3800.0,1.34992013]
[1717531415997,7.3,3800.5,3800.1,3.95276577]
[1717531416370,7.3,3800.5,3800.2,0.02840277]
[1717531416565,7.3,3800.5,3800.3,1.32126577]
[1717531416775,2.2758,3800.4,3799.0,0.55266176]
[1717531417109,2.2758,3800.4,3799.5,2.63189]
[1717531417110,4.90711,3800.4,3799.5,2.63189]
[1717531417313,4.90711,3800.4,3799.6,1.32126577]
[1717531417314,2.63145,3800.2,3799.6,1.32126577]
[1717531417604,4.77710518,3800.2,3799.6,1.34994019]
[1717531417807,2.63158,3800.0,3799.6,1.32126577]
[1717531418164,2.63158,3800.0,3799.7,0.02862914]
[1717531418470,2.63158,3800.0,3799.8,1.32126577]
[1717531418781,4.77683958,3800.0,3799.8,1.32126577]
[1717531418924,1.57653543,3799.9,3799.8,1.32126577]
[1717531419112,2.14525958,3799.9,3799.8,1.32126577]
[1717531419318,2.14523827,3799.9,3799.8,1.32126577]
[1717531420034,2.31,3799.8,3798.9,2.63231]
[1717531420339,4.20842798,3799.5,3799.0,1.35014326]
[1717531420696,0.56883839,3799.4,3799.0,1.35014326]
[1717531420920,4.20842798,3799.5,3799.0,1.35014326]
[1717531421132,2.6321,3799.3,3799.0,1.35014326]
[1717531424334,2.6322,3799.1,3799.0,1.35014326]
[1717531425429,2.6322,3799.1,3799.0,1.32126577]
[1717531425593,2.6322,3799.1,3799.0,1.35036404]
[1717531426416,2.63201,3799.4,3799.0,1.35036404]
[1717531426617,3.0,3799.3,3799.0,1.35036404]
[1717531426922,11.77929161,3799.7,3799.1,2.49595297]
[1717531427121,3.0,3799.6,3799.2,1.32126577]
[1717531427633,3.0,3799.6,3799.3,0.02896239]
[1717531427837,3.0,3799.6,3799.4,1.32126577]
[1717531430841,3.0,3799.6,3799.5,0.02896428]
[1717531431015,3.0,3799.6,3799.5,1.35023005]
[1717531432937,11.77908161,3800.0,3799.5,1.35023005]
[1717531433242,3.0,3799.9,3799.6,1.32126577]
[1717531441350,2.63171,3799.8,3799.6,1.32126577]
[1717531441745,3.0,3799.9,3799.7,0.02867681]
[1717531441950,3.0,3800.0,3799.8,1.32126577]
[1717531442149,11.77883161,3800.4,3799.8,1.32126577]
[1717531442366,11.77883161,3800.4,3799.9,0.39530958]
[1717531442582,11.77883161,3800.4,3800.0,1.32126577]
[1717531442876,9.14748161,3800.4,3800.0,1.32126577]
[1717531443050,9.14748161,3800.4,3800.1,0.02849571]
[1717531443250,9.14748161,3800.4,3800.2,1.32126577]
[1717531445061,2.63125,3800.5,3800.2,1.32126577]
[1717531445254,3.0,3800.4,3800.2,1.32126577]
[1717531445460,3.0,3800.4,3800.3,0.02826498]
[1717531445687,3.0,3800.4,3800.3,1.32126577]
[1717531445981,5.0802,3800.3,3798.8,5.62116176]
[1717531446147,5.0802,3800.3,3799.3,1.32126577]
[1717531446148,12.3802,3800.3,3799.3,1.32126577]
[1717531446347,12.3802,3800.3,3799.5,2.6319]
[1717531446548,12.3802,3800.3,3799.6,1.32126577]
[1717531446769,5.0802,3800.3,3799.6,1.32126577]
[1717531453503,2.63152,3800.1,3799.6,1.32126577]
[1717531453666,2.63152,3800.1,3799.7,0.02853661]
[1717531453859,2.63152,3800.1,3799.8,1.32126577]
[1717531454202,2.63152,3800.1,3799.9,0.02844606]
[1717531454500,2.63152,3800.1,3800.0,1.32126577]
[1717531455498,2.63152,3800.1,3800.0,1.34966655]
[1717531460070,3.42152,3800.1,3800.0,1.34966655]
[1717531463792,2.63152,3800.1,3800.0,1.34966655]
[1717531463993,0.79,3800.1,3800.0,1.34966655]
[1717531464201,5.63136,3800.4,3800.0,1.34966655]
[1717531464401,0.56868505,3800.3,3800.0,1.71940242]
[1717531464994,6.42136,3800.4,3800.0,1.71940242]
[1717531465512,3.79,3800.4,3800.1,0.02837041]
[1717531465661,0.79,3800.4,3800.2,1.32126577]
[1717531466812,4.35863712,3800.4,3800.2,1.32126577]
[1717531467102,3.79,3800.4,3800.2,1.32126577]
[1717531473579,2.63137,3800.3,3800.2,1.32126577]
[1717531473779,5.61885578,3800.3,3800.2,1.32126577]
[1717531473979,2.63153,3800.1,3799.5,2.6319]
[1717531474208,0.79,3799.8,3799.6,1.32126577]
[1717531474415,0.79,3799.8,3799.6,1.34981783]
[1717531475731,2.63178,3799.7,3799.6,1.34981783]
[1717531476028,3.2005333,3799.7,3799.6,1.34981783]
[1717531476735,4.99818,3799.7,3799.6,1.34981783]
[1717531476884,5.56695336,3799.7,3799.6,1.34981783]
[1717531477712,8.56695336,3799.7,3799.6,1.34981783]
[1717531479029,7.99818,3799.7,3799.6,1.34981783]
[1717531481028,7.99818,3799.7,3799.6,0.02855206]
[1717531481222,7.99818,3799.7,3798.9,2.2556]
[1717531481393,0.79,3799.2,3799.0,1.32126577]
[1717531490932,3.42215,3799.2,3799.0,1.32126577]
[1717531496681,2.2727,3799.1,3799.0,1.32126577]
[1717531497237,2.2727,3799.1,3798.2,2.4767]
[1717531497439,2.2727,3799.1,3799.0,0.02898489]
[1717531497647,2.2727,3799.1,3798.3,1.32126577]
[1717531497648,6.0627,3799.1,3798.3,1.32126577]
[1717531497954,0.79,3798.4,3798.3,1.32126577]
[1717531502485,2.63287,3798.2,3797.5,2.4407]
[1717531502801,2.63301,3798.0,3797.6,1.32126577]
[1717531502963,0.79,3797.7,3797.6,1.35143102]
[1717531504618,0.79,3797.7,3797.6,1.29507948]
[1717531514236,0.79,3797.7,3797.6,0.03016525]
[1717531514450,2.63369,3797.0,3795.8,2.63447]
[1717531514739,2.63369,3797.0,3795.9,2.4984]
[1717531514740,0.79,3796.1,3795.9,2.4984]
[1717531514920,0.79,3796.1,3795.9,2.52775564]
[1717531515435,0.79,3796.1,3795.9,3.0439782]
[1717531516312,9.93388,3796.7,3795.9,2.52775564]
[1717531516644,0.79,3796.2,3795.9,2.52775564]
[1717531517144,0.79,3796.2,3795.9,0.02935564]
[1717531517494,0.79,3796.2,3795.5,2.4135]
[1717531518119,2.63409,3796.4,3795.6,0.02980505]
[1717531518438,0.79,3796.1,3795.5,2.4135]
[1717531518624,0.79,3796.1,3795.7,1.32126577]
[1717531519142,0.79,3796.1,3795.8,0.0297143]
[1717531519346,2.63409,3796.4,3795.9,1.32126577]
[1717531519705,0.79,3796.1,3795.9,1.32126577]
[1717531519899,2.63409,3796.4,3795.9,1.32126577]
[1717531520119,0.79,3796.1,3796.0,0.02962356]
[1717531520323,0.79,3796.1,3796.0,1.32126577]
[1717531520647,0.79,3796.1,3796.0,1.35088933]
[1717531521206,2.63409,3796.4,3796.0,1.35088933]
[1717531521423,0.79,3796.3,3796.1,1.32126577]
[1717531523711,0.79,3795.4,3795.2,1.95849054]
[1717531523909,0.79,3795.4,3795.3,0.02994119]
[1717531524105,0.79,3795.4,3795.3,1.35120696]
[1717531525327,2.6345,3795.8,3795.3,1.35120696]
[1717531525526,2.6345,3795.8,3795.4,1.32126577]
[1717531525731,0.79,3795.5,3795.4,1.32126577]
[1717531526048,0.79,3795.7,3795.5,2.4086]
[1717531526357,0.79,3795.7,3795.6,1.32126577]
[1717531526523,0.79,3795.7,3795.6,1.35107082]
[1717531529555,0.78881505,3795.7,3795.6,1.35107082]
[1717531529716,2.6343,3796.1,3795.6,2.00402997]
[1717531529918,0.79,3795.9,3795.6,2.00402997]
[1717531531493,7.3,3796.3,3795.9,2.6344]
[1717531531747,0.79,3796.5,3796.0,1.32126577]
[1717531531957,0.79,3796.5,3796.0,1.796602]
[1717531532114,0.79,3796.5,3796.0,1.71683235]
[1717531532314,0.79,3796.3,3796.0,1.71683235]
[1717531532857,0.79,3796.3,3796.1,0.07972298]
[1717531533059,0.79,3796.3,3796.2,1.32126577]
[1717531533430,0.79,3796.3,3796.2,1.40094208]
[1717531540624,0.79,3796.3,3796.2,1.32126577]
[1717531543554,0.79,3796.5,3796.2,1.32126577]
[1717531545753,0.79,3796.3,3796.2,1.32126577]
[1717531546485,0.79,3796.3,3794.8,2.2644]
[1717531546658,0.79,3795.1,3795.0,2.63501]
[1717531546959,4.97838,3796.0,3795.0,3.95627577]
[1717531546960,0.79,3795.3,3795.0,3.95627577]
[1717531547130,9.93453,3795.8,3795.1,1.32126577]
[1717531547451,0.79,3795.3,3795.1,1.32126577]
[1717531548017,0.79,3795.3,3795.2,0.0730091]
[1717531548217,0.79,3795.3,3795.2,1.32126577]
[1717531550278,9.93453,3795.8,3795.2,1.32126577]
[1717531550478,0.79,3795.3,3794.7,2.63523]
[1717531550987,0.79,3795.3,3794.9,2.63509]
[1717531551352,2.63453,3795.8,3795.1,2.63497]
[1717531551549,9.93748161,3795.9,3795.3,2.3881]
[1717531551865,0.79,3795.9,3795.4,1.32126577]
[1717531553246,0.79,3795.7,3795.4,1.32126577]
[1717531553676,0.79,3795.7,3795.5,0.07304191]
[1717531553886,0.79,3795.7,3795.6,1.32126577]
[1717531554305,0.79,3795.7,3795.6,1.39426099]
[1717531554447,2.63429,3796.1,3795.6,1.39426099]
[1717531554645,0.79,3795.7,3795.6,1.39426099]
[1717531554848,2.63429,3796.1,3795.6,1.39426099]
[1717531555088,0.79,3795.8,3795.6,1.32126577]
[1717531555446,0.79,3795.8,3795.7,0.07294854]
[1717531555690,0.79,3795.8,3795.7,1.39421431]
[1717531555848,0.79,3795.8,3795.7,1.32126577]
[1717531558090,0.79,3795.8,3795.0,2.63502]
[1717531558264,0.79,3795.5,3795.1,1.32126577]
[1717531558457,0.79,3795.5,3795.1,1.39455703]
[1717531560895,3.42445,3795.9,3795.2,3.95615577]
[1717531561192,3.42445,3795.9,3795.2,4.58961047]
[1717531561521,0.79,3795.7,3795.3,0.07320682]
[1717531561654,0.79,3795.7,3795.4,1.32126577]
[1717531561858,0.79,3795.7,3795.5,0.07311345]
[1717531562054,0.79,3795.7,3795.6,1.32126577]
[1717531562558,0.79,3795.7,3795.6,1.39433253]
[1717531562971,11.5099311,3796.2,3795.6,1.39433253]
[1717531563177,0.79,3796.0,3795.6,1.32126577]
[1717531563572,0.79,3796.0,3795.7,0.07302008]
[1717531563769,0.79,3796.0,3795.8,1.32126577]
[1717531566111,3.0,3796.1,3795.8,1.32126577]
[1717531566315,9.93426,3796.2,3795.9,0.39558758]
[1717531566316,7.3,3796.2,3795.9,0.39558758]
[1717531566506,7.3,3796.2,3796.0,3.95561577]
[1717531567307,7.3,3796.2,3796.1,0.07283338]
[1717531567519,9.93748161,3796.4,3796.1,1.39409915]
[1717531567702,9.93748161,3796.4,3796.2,1.32126577]
[1717531568080,9.93748161,3796.4,3796.3,0.07274004]
[1717531568281,9.93748161,3796.4,3796.3,1.39400581]
[1717531568480,9.93748161,3796.4,3796.3,1.32126577]
[1717531570991,0.79,3796.4,3796.3,1.32126577]
[1717531576136,3.2009,3796.4,3796.3,1.32126577]
[1717531576291,5.34591391,3796.4,3796.3,1.32126577]
[1717531576599,2.63429,3796.1,3795.4,2.63471]
[1717531576785,4.20998299,3796.1,3795.5,1.32126577]
[1717531576988,0.79,3795.6,3795.5,1.32126577]
[1717531577236,0.79,3795.6,3795.5,1.39423318]
[1717531579687,0.79,3795.8,3795.5,1.39423318]
[1717531580103,0.79,3795.8,3795.5,1.32126577]
[1717531580720,0.79,3795.8,3795.6,0.07292371]
[1717531580913,3.0,3796.0,3795.7,1.32126577]
[1717531581126,0.79,3795.9,3795.7,1.32126577]
[1717531581327,3.0,3796.0,3795.8,0.07283035]
[1717531581517,0.79,3795.9,3795.8,0.07283035]
[1717531582015,0.79,3795.9,3795.4,4.93461]
[1717531582509,0.79,3795.9,3795.5,0.07297039]
[1717531584703,0.79,3795.9,3795.6,1.32126577]
[1717531585030,0.79,3795.9,3795.7,0.07301409]
[1717531585236,0.79,3795.9,3795.8,1.32126577]
[1717531585431,3.42445,3795.9,3795.8,0.07296741]
[1717531585738,7.93180702,3795.9,3795.1,2.63494]
[1717531585940,0.79,3795.6,3795.2,1.32126577]
[1717531586099,0.79,3795.6,3795.2,1.3945133]
[1717531586623,0.79,3795.6,3795.3,2.63482]
[1717531586802,0.79,3795.6,3795.4,1.39441992]
[1717531589246,0.79,3795.7,3795.4,1.39441992]
[1717531590745,3.0,3796.0,3795.5,2.63469]
[1717531590937,0.79,3795.9,3795.6,1.32126577]
[1717531591135,0.79,3795.9,3795.6,1.39432655]
[1717531591447,0.56929847,3796.0,3795.6,1.39432655]
[1717531591653,5.36551991,3796.1,3795.6,1.32126577]
[1717531591950,5.36551991,3796.1,3795.7,2.63455]
[1717531592152,5.36551559,3796.1,3795.8,1.32126577]
[1717531592361,1.57551559,3796.3,3795.9,2.63442]
[1717531592526,1.57551559,3796.3,3796.0,1.32126577]
[1717531592727,0.5692612,3796.3,3796.0,1.39413983]
[1717531592932,3.79,3796.4,3796.0,1.39413983]
[1717531593248,1.57551559,3796.5,3796.2,1.32126577]
[1717531593426,7.3,3796.9,3796.3,0.07273406]
[1717531593625,1.57580026,3796.8,3796.4,1.32126577]
[1717531593833,7.3,3796.9,3796.5,2.63395]
[1717531594029,7.3,3796.9,3796.6,1.32126577]
[1717531596523,1.57580026,3797.2,3796.7,2.63386]
[1717531596856,0.79,3797.0,3796.8,1.32126577]
[1717531602166,5.63349,3797.3,3796.8,1.32126577]
[1717531602341,0.79,3797.0,3796.8,1.32126577]
[1717531602849,5.63349,3797.3,3796.8,4.35054235]
[1717531602850,0.79,3797.3,3796.8,4.35054235]